[Event "Chinese League Division-A 2024"]
[Site "Fuling Chongqing"]
[Date "2024.06.28"]
[Round "3.29"]
[White "Zhai, Mo"]
[Black "Lei, Tingjie"]
[Result "0-1"]
[ECO "D27"]
[WhiteElo "2348"]
[BlackElo "2548"]
[Annotator "TA"]
[PlyCount "74"]
[EventDate "2024.06.28"]
[EventType "team-tourn"]
[EventCountry "CHN"]
[SourceTitle "playchess.com"]
[Source "ChessBase"]
[SourceQuality "1"]
[TimeControl "40/5400+30:1800+30"]

{[%evp 18,74,0,-22,-20,-29,-33,-14,-18,-33,-31,-39,-28,-33,-28,-29,0,0,-41,-33,0,-12,0,0,0,-101,-101,-100,-95,-100,-12,-7,-1,-8,-7,-65,-70,-76,-40,-43,-47,-40,0,0,42,44,166,0,0,-61,-64,-62,0,-59,-59,-525,-529,-812,-802]} 1. d4 {[%emt 0:00:12]} d5 {[%emt 0:00:31]} 2. c4 {[%emt 0:00:25]} e6 {[%emt 0:00:11]} 3. Nf3 {[%emt 0:01:17]} Nf6 {[%emt 0:00:07]} 4. Nc3 {[%emt 0:00:10]} dxc4 {[%emt 0:00:15]} 5. e3 {[%emt 0:03:05]} a6 {[%emt 0:00:08]} 6. Bxc4 {[%emt 0:01:01]} b5 {[%emt 0:00:04]} 7. Bd3 {[%emt 0:04:36]} Bb7 {[%emt 0:00:06]} 8. O-O {[%emt 0:00:24]} c5 {[%emt 0:03:16]} 9. dxc5 {[%emt 0:04:53]} Bxc5 {[%emt 0:00:36]} 10. Qe2 {[%emt 0:03:34][%cal Od3b5]} Nbd7 {[%emt 0:00:57]} 11. a3 {[%emt 0:05:46]} Rc8 {[%emt 0:09:06]} 12. e4 {[%emt 0:04:15]} Qc7 {[%emt 0:17:38] The position is equal.} 13. g3 {[%emt 0:07:54]} O-O {[%emt 0:04:01]} 14. Bf4 {[%emt 0:00:29]} e5 {[%emt 0:01:19]} 15. Bd2 {[%emt 0:04:14]} Rfd8 {[%emt 0:13:11]} 16. Rac1 {[%emt 0:02:05]} Qb8 {[%emt 0:02:26]} 17. Bb1 {[%emt 0:11:14]} h6 {[%emt 0:05:15]} 18. b4 {[%emt 0:11:26]} Bf8 {[%emt 0:03:55]} 19. Be3 {[%emt 0:11:32] Wards off Nb6} Bc6 {[%emt 0:09:25][%cal Oa6a5]} 20. Nd2 {[%emt 0:08:42]} a5 {[%emt 0:06:06]} 21. Bd3 {[%emt 0:07:27]} (21. Na2 $1 $11 {keeps the balance.}) 21... axb4 $17 {[%emt 0:00:43]} 22. axb4 {[%emt 0:00:01]} Bxb4 {[%emt 0:00:43]} 23. Nxb5 {[%emt 0:00:07]} Bxd2 {[%emt 0:07:45]} (23... Nc5 $1 $17 24. Bxc5 Rxd3) 24. Bxd2 $11 {[%emt 0:00:13] [#]} Bxe4 $1 {[%emt 0:05:27]} 25. Bxe4 {[%emt 0:01:28]} (25. Rxc8 Rxc8) 25... Nxe4 {[%emt 0:00:04]} 26. Ba5 {[%emt 0:01:21]} (26. Qxe4 Qxb5 27. Be3 Rxc1 28. Rxc1 Nf8 $15) (26. Bxh6 $11 Rxc1 (26... gxh6 27. Rxc8 Rxc8 28. Qg4+ Ng5 29. Qxd7 $11) 27. Bxc1) 26... Rf8 $1 $15 {[%emt 0:01:32]} 27. Nc7 {[%emt 0:05:00]} Nec5 {[%emt 0:03:36]} 28. Nd5 {[%emt 0:01:02]} Rfe8 {[%emt 0:00:42] Dodges Ne7+} 29. Bb4 {[%emt 0:00:23]} Re6 {[%emt 0:04:31]} 30. Rc4 {[%emt 0:00:34]} Qa8 {[%emt 0:01:11]} 31. Rd1 {[%emt 0:00:16] Qc2 is the strong threat.} Kh8 {[%emt 0:00:31] [#]} (31... e4 $14) 32. Qc2 $2 {[%emt 0:00:27]} (32. Bxc5 $1 $18 {[%cal Od5e7] Strongly threatening Ne7!} Nxc5 33. Qc2) 32... Rd6 $1 $36 {[%emt 0:00:17][%mdl 2048] Black is more active.} 33. Ne7 {[%emt 0:00:34]} (33. Ne3 $1 $11 Rxd1+ 34. Nxd1) 33... Rxd1+ $15 {[%emt 0:00:27]} 34. Qxd1 {[%emt 0:00:02]} Rc7 {[%emt 0:00:51]} ({Black should try} 34... Rd8 $1 $15 35. Nc6 Qxc6 36. Rxc5 Qe4 (36... Nxc5 37. Qxd8+ Kh7 38. Bxc5 $11)) 35. Nd5 {[%emt 0:00:48]} (35. h4 $11) 35... Ra7 $1 {[%emt 0:00:13] aiming for ...Ra1.} 36. Qf3 $2 {[%emt 0:01:00][%mdl 8192]} (36. Rxc5 $2 {perishes.} Nxc5 (36... Ra1 37. Rc8+ Kh7 38. Kg2 $17) 37. Nb6 (37. Bxc5 $2 {is the wrong capture.} Ra1 $19) 37... Ra1 38. Nxa8 Rxd1+ $19) (36. Rc1 $15) 36... Ne6 $19 {[%emt 0:00:47] Hoping for ...Nb6. Excellent horsemanship.} 37. h4 {[%emt 0:00:29]} Nb6 {[%emt 0:00:27] Weighted Error Value: White=0.57/Black=0.21 (precise) .  Loses game:     	White=1     	---        Missed win:     	White=1     	---        Mistake:       	White=4     	Black=3      Inaccurate:     	White=2     	Black=4      OK:         	White=7     	Black=8      Best:        	---       	Black=2      Strong:       	---       	Black=3} 0-1

[Event "Chinese League Division-A 2024"]
[Site "Fuling Chongqing"]
[Date "2024.06.28"]
[Round "3.30"]
[White "Wang, Chuqiao"]
[Black "Yan, Tianqi"]
[Result "1-0"]
[ECO "E15"]
[WhiteElo "2278"]
[BlackElo "2306"]
[Annotator "RC"]
[PlyCount "91"]
[EventDate "2024.06.28"]
[EventType "team-tourn"]
[EventCountry "CHN"]
[SourceTitle "playchess.com"]
[Source "ChessBase"]
[SourceQuality "1"]
[TimeControl "40/5400+30:1800+30"]

1. d4 {[%emt 0:00:03]} Nf6 {[%emt 0:00:10]} 2. c4 {[%emt 0:00:13]} e6 {[%emt 0:00:11]} 3. Nf3 {[%emt 0:00:15]} b6 {[%emt 0:00:12]} 4. g3 {[%emt 0:00:12]} Ba6 {[%emt 0:00:18]} 5. b3 {[%emt 0:00:25]} Bb4+ {[%emt 0:00:16]} 6. Bd2 {[%emt 0:00:16]} Be7 {[%emt 0:00:19]} 7. Bg2 {[%emt 0:00:14]} c6 {[%emt 0:00:26]} 8. O-O {[%emt 0:01:25]} d5 {[%emt 0:00:43]} 9. Qc2 {[%emt 0:08:58]} Nbd7 {[%emt 0:01:23]} 10. Bf4 {[%emt 0:05:03]} O-O {[%emt 0:05:38]} 11. Nbd2 {[%emt 0:14:05]} Nh5 {[%emt 0:10:54]} 12. Be3 {[%emt 0:01:33]} Rc8 {[%emt 0:05:09]} 13. Qb2 {[%emt 0:04:34]} Nhf6 {[%emt 0:02:04]} 14. Rac1 {[%emt 0:01:24]} Ng4 {[%emt 0:23:38]} 15. Bf4 {[%emt 0:05:21]} g5 {[%emt 0:01:03]} 16. Be3 {[%emt 0:05:25]} f5 {[%emt 0:01:21]} 17. Nb1 {[%emt 0:03:37]} Nxe3 {[%emt 0:02:50]} 18. fxe3 {[%emt 0:00:04]} g4 {[%emt 0:01:11]} 19. Ne1 {[%emt 0:00:35]} Bg5 {[%emt 0:00:58]} 20. Rc3 {[%emt 0:02:02]} Qe7 {[%emt 0:05:27]} 21. Na3 {[%emt 0:08:11]} b5 {[%emt 0:03:23]} 22. cxb5 {[%emt 0:03:18]} Bxb5 {[%emt 0:11:19]} 23. Nxb5 {[%emt 0:04:37]} cxb5 {[%emt 0:00:56]} 24. Rxc8 {[%emt 0:13:03]} Bxe3+ {[%emt 0:00:04]} 25. Kh1 {[%emt 0:00:05]} Rxc8 {[%emt 0:00:06]} 26. Nd3 {[%emt 0:00:24]} Qg7 {[%emt 0:11:04]} 27. Qa3 {[%emt 0:01:07]} Nb8 {[%emt 0:07:50]} 28. Qd6 {[%emt 0:01:48]} Re8 {[%emt 0:02:06]} 29. Nc5 {[%emt 0:02:06]} Qxd4 {[%emt 0:03:11]} 30. Nxe6 {[%emt 0:00:46]} Qb6 {[%emt 0:00:48]} 31. Qxb6 {[%emt 0:00:40]} axb6 {[%emt 0:00:24]} 32. Bxd5 {[%emt 0:00:37]} Rc8 {[%emt 0:00:26]} 33. Nd4+ {[%emt 0:01:00]} Kh8 {[%emt 0:00:15]} 34. Nxf5 {[%emt 0:00:12]} Bc5 {[%emt 0:00:14]} 35. Nh6 {[%emt 0:02:43]} Re8 {[%emt 0:00:53]} 36. e4 {[%emt 0:02:18]} Na6 {[%emt 0:00:24]} 37. Rf4 {[%emt 0:03:08]} Kg7 {[%emt 0:00:54]} 38. Nf5+ {[%emt 0:00:58]} Kg6 {[%emt 0:00:14]} 39. Nd4 {[%emt 0:04:01]} Re7 {[%emt 0:00:47]} 40. Nc6 {[%emt 0:00:00]} Rc7 {[%emt 0:00:00]} 41. Rxg4+ {[%emt 0:01:50]} Kh5 {[%emt 0:04:33]} 42. Ne5 {[%emt 0:02:08]} Re7 {[%emt 0:00:16]} 43. Rh4+ {[%emt 0:00:39]} Kg5 {[%emt 0:00:02]} 44. Nf3+ {[%emt 0:00:17]} Kg6 {[%emt 0:00:31]} 45. Rg4+ {[%emt 0:03:11]} Kh5 {[%emt 0:01:50]} 46. Rg8 {[%emt 0:00:45]} 1-0

[Event "Chinese League Division-A 2024"]
[Site "Fuling Chongqing"]
[Date "2024.06.29"]
[Round "4.1"]
[White "Li, Chao b"]
[Black "Bai, Jinshi"]
[Result "1/2-1/2"]
[ECO "C42"]
[WhiteElo "2645"]
[BlackElo "2564"]
[Annotator "TA"]
[PlyCount "60"]
[EventDate "2024.06.28"]
[EventType "team-tourn"]
[EventCountry "CHN"]
[SourceTitle "playchess.com"]
[Source "ChessBase"]
[SourceQuality "1"]
[TimeControl "40/5400+30:1800+30"]

{[%evp 15,60,31,28,27,32,31,30,23,37,36,58,0,0,-7,11,14,30,27,29,23,20,17,20,12,12,12,11,0,0,0,0,0,0,0,0,0,0,0,0,0,0,0,0,0,0,0,6]} 1. e4 {[%emt 0:00:04]} e5 {[%emt 0:00:21]} 2. Nf3 {[%emt 0:00:05]} Nf6 {[%emt 0:00:07]} 3. Nxe5 {[%emt 0:02:01]} d6 {[%emt 0:00:08]} 4. Nf3 {[%emt 0:00:03]} Nxe4 {[%emt 0:00:10]} 5. Nc3 {[%emt 0:00:08]} Nxc3 {[%emt 0:01:16]} 6. dxc3 {[%emt 0:01:10]} Be7 {[%emt 0:00:15]} 7. Be3 {[%emt 0:00:17]} Nc6 {[%emt 0:00:39]} 8. Qd2 {[%emt 0:00:18]} Be6 {[%emt 0:04:02]} 9. O-O-O {[%emt 0:02:32]} Qd7 {[%emt 0:00:12][%cal Oe8g8]} 10. a3 {[%emt 0:00:36]} h6 {[%emt 0:03:24]} 11. Be2 {[%emt 0:02:56] White has an edge.} O-O-O {[%emt 0:04:05]} 12. Nd4 {[%emt 0:01:01]} Nxd4 {[%emt 0:00:38]} 13. cxd4 {[%emt 0:00:07]} ({Of course not} 13. Qxd4 c5 14. Qd3 (14. Qxg7 $2 {loses.} Rdg8 $19) 14... d5 $11) (13. Bxd4 $14 Qa4 14. c4 (14. Bxg7 $2 {too greedy.} Bg5 $19)) 13... d5 {[%emt 0:01:15]} 14. h4 {[%emt 0:00:25]} h5 {[%emt 0:05:04]} 15. Bf4 {[%emt 0:01:26]} Bd6 {[%emt 0:10:17]} 16. Rhe1 {[%emt 0:00:50]} Bf5 {[%emt 0:02:09][%cal Of5c2]} 17. Bxd6 {[%emt 0:03:32]} Qxd6 {[%emt 0:00:05]} 18. Bf3 {[%emt 0:00:16] The position is equal.} Bg4 {[%emt 0:07:17]} 19. Bxg4+ {[%emt 0:00:51]} hxg4 {[%emt 0:00:05]} 20. g3 {[%emt 0:00:45]} Rhe8 {[%emt 0:03:03]} 21. Rxe8 {[%emt 0:00:51]} (21. Qg5 {with more complications.} Qh6 22. Kd2 Kd7 23. Qxh6 gxh6 24. c3) 21... Rxe8 $11 {[%emt 0:00:05][%mdl 4096] Endgame. KQR-KQR} 22. Re1 {[%emt 0:00:08]} Re6 {[%emt 0:02:28]} 23. Kd1 {[%emt 0:00:50]} Kd7 {[%emt 0:07:58]} 24. Rxe6 {[%emt 0:00:09]} Qxe6 {[%emt 0:00:04] KQ-KQ} 25. Qf4 {[%emt 0:00:16]} g6 {[%emt 0:00:11]} 26. Kd2 {[%emt 0:00:26]} f5 {[%emt 0:00:31]} 27. Qh6 {[%emt 0:00:58]} a5 {[%emt 0:02:33]} 28. Qg7+ {[%emt 0:00:15]} Kd6 {[%emt 0:00:10]} 29. Qf8+ {[%emt 0:00:14]} Kd7 {[%emt 0:00:12]} 30. Qg7+ {[%emt 0:00:04]} Kd6 {[%emt 0:00:12] Weighted Error Value: White=0.05 (flawless) /Black=0.03 (flawless) .  Mistake:       	White=1     	---        OK:         	White=10    	Black=9} 1/2-1/2

[Event "Chinese League Division-A 2024"]
[Site "Fuling Chongqing"]
[Date "2024.06.29"]
[Round "4.2"]
[White "Kong, Xiangrui"]
[Black "Xiu, Deshun"]
[Result "1/2-1/2"]
[ECO "C65"]
[WhiteElo "2439"]
[BlackElo "2514"]
[Annotator "TA"]
[PlyCount "37"]
[EventDate "2024.06.28"]
[EventType "team-tourn"]
[EventCountry "CHN"]
[SourceTitle "playchess.com"]
[Source "ChessBase"]
[SourceQuality "1"]
[TimeControl "40/5400+30:1800+30"]

{[%evp 9,37,0,0,-6,8,17,12,2,7,13,10,22,17,-41,0,0,0,0,0,0,0,0,0,0,0,0,0,0,0,0]} 1. e4 {[%emt 0:00:02]} e5 {[%emt 0:00:08]} 2. Nf3 {[%emt 0:00:03]} Nc6 {[%emt 0:00:08]} 3. Bb5 {[%emt 0:00:02]} Nf6 {[%emt 0:00:11]} 4. d3 {[%emt 0:00:02]} Bc5 {[%emt 0:00:13]} 5. Bg5 {[%emt 0:00:31]} h6 {[%emt 0:02:04]} 6. Bh4 {[%emt 0:00:02]} Ne7 {[%emt 0:08:04]} 7. d4 {[%emt 0:00:42]} exd4 {[%emt 0:01:07]} 8. Bxf6 {[%emt 0:00:06]} gxf6 {[%emt 0:00:12]} 9. O-O {[%emt 0:00:11]} c6 {[%emt 0:05:47]} 10. Bc4 {[%emt 0:00:28]} Qb6 {[%emt 0:02:37]} 11. e5 {[%emt 0:48:24]} (11. Nbd2 $11) 11... fxe5 {[%emt 0:05:31]} 12. Bxf7+ {[%emt 0:05:35] The position is equal.} Kxf7 {[%emt 0:07:06]} 13. Nxe5+ {[%emt 0:00:02]} Kg7 {[%emt 0:07:04][%cal Od7d5] [#] And now ...d5! would win.} 14. Qg4+ {[%emt 0:13:56]} Kh7 $1 {[%emt 0:00:25]} 15. Qe4+ {[%emt 0:06:14]} Kg7 {[%emt 0:02:19][%cal Od7d5] Threatens to win with ...d5!} 16. Qg4+ {[%emt 0:03:19]} Kh7 $1 {[%emt 0:00:33]} 17. Qe4+ {[%emt 0:01:48]} Kg7 {[%emt 0:00:10][%cal Od7d5]} 18. Qg4+ {[%emt 0:00:02]} Kh7 $1 {[%emt 0:00:05] [#] Strongly threatening ...d5.} 19. Qe4+ {[%emt 0:00:10] An uneventful encounter.   Weighted Error Value: White=0.07 (flawless) /Black=0.03 (flawless) .  Mistake:       	White=1     	---        Inaccurate:     	---       	Black=1      OK:         	White=10    	Black=4      Best:        	White=1     	Black=1      Strong:       	---       	Black=3} 1/2-1/2

[Event "Chinese League Division-A 2024"]
[Site "Fuling Chongqing"]
[Date "2024.06.29"]
[Round "4.3"]
[White "Zhang, Di"]
[Black "Ma, Qun"]
[Result "1/2-1/2"]
[ECO "C47"]
[WhiteElo "2362"]
[BlackElo "2643"]
[Annotator "TA"]
[PlyCount "68"]
[EventDate "2024.06.28"]
[EventType "team-tourn"]
[EventCountry "CHN"]
[SourceTitle "playchess.com"]
[Source "ChessBase"]
[SourceQuality "1"]
[TimeControl "40/5400+30:1800+30"]

{[%evp 17,68,0,0,0,0,0,12,11,8,0,18,0,0,6,0,0,8,0,14,0,5,0,18,23,17,0,0,0,23,0,0,0,31,25,30,30,42,0,-3,-17,-11,-9,0,0,0,0,0,0,0,0,0,0,3]} 1. e4 {[%emt 0:00:03]} e5 {[%emt 0:00:19]} 2. Nf3 {[%emt 0:00:12]} Nc6 {[%emt 0:00:09]} 3. Nc3 {[%emt 0:00:09]} Nf6 {[%emt 0:00:17]} 4. d4 {[%emt 0:00:25]} exd4 {[%emt 0:00:33]} 5. Nxd4 {[%emt 0:00:08]} Bb4 {[%emt 0:00:05]} 6. Nxc6 {[%emt 0:00:18]} bxc6 {[%emt 0:00:09]} 7. Bd3 {[%emt 0:00:08]} d5 {[%emt 0:01:14]} 8. exd5 {[%emt 0:00:25]} O-O {[%emt 0:00:22]} 9. O-O {[%emt 0:00:10]} cxd5 {[%emt 0:00:07]} 10. h3 {[%emt 0:00:19]} c6 {[%emt 0:01:19]} 11. Qf3 {[%emt 0:00:12]} Rb8 {[%emt 0:02:23][%cal Ba8b8,Bb8b7,Bb7e7][%mdl 32]} 12. Bf4 {[%emt 0:01:41]} Bd6 {[%emt 0:00:19]} 13. b3 {[%emt 0:00:26]} Rb7 {[%emt 0:01:37]} 14. Rad1 {[%emt 0:14:35]} Re7 {[%emt 0:09:37]} 15. Ne2 {[%emt 0:07:22]} Bxf4 {[%emt 0:23:41]} 16. Qxf4 {[%emt 0:02:05]} Rfe8 {[%emt 0:00:43]} 17. Ng3 {[%emt 0:13:00]} Qa5 {[%emt 0:10:57]} 18. b4 {[%emt 0:10:14]} (18. Qd2 {simplifies} Qxd2 19. Rxd2 Be6 20. Re1) 18... Qb6 {[%emt 0:01:50]} 19. c3 {[%emt 0:06:20]} a5 {[%emt 0:05:49]} 20. a4 {[%emt 0:05:38]} h6 {[%emt 0:01:01][%cal Bh7h6,Bh6h5][%mdl 32]} 21. Qd6 {[%emt 0:06:20]} Re6 {[%emt 0:01:45]} 22. Qf4 {[%emt 0:00:20]} R6e7 {[%emt 0:01:53]} 23. Qd6 {[%emt 0:00:56]} Re6 {[%emt 0:02:16]} 24. Qf4 {[%emt 0:00:07]} Re5 {[%emt 0:00:13]} 25. Rb1 {[%emt 0:06:02]} h5 {[%emt 0:01:34]} 26. Rfd1 {[%emt 0:01:13]} Qd8 {[%emt 0:04:06]} 27. bxa5 {[%emt 0:11:42]} Qxa5 {[%emt 0:03:56] The position is equal.} 28. Qb4 {[%emt 0:01:26]} Qa7 {[%emt 0:06:46]} 29. a5 {[%emt 0:01:12] [#]} h4 $1 {[%emt 0:09:20]} 30. Qxh4 {[%emt 0:03:25]} Qxa5 {[%emt 0:00:02]} 31. c4 {[%emt 0:04:22]} Re1+ {[%emt 0:02:08]} 32. Kh2 {[%emt 0:00:23]} Rxd1 {[%emt 0:01:01]} 33. Rxd1 {[%emt 0:00:01]} Qa4 {[%emt 0:00:09]} 34. Rb1 {[%emt 0:02:06] Black must now prevent Nh5.} dxc4 {[%emt 0:03:56] Weighted Error Value: White=0.06 (flawless) /Black=0.05 (flawless) .  Inaccurate:     	White=1     	Black=1      OK:         	White=10    	Black=10} 1/2-1/2

[Event "Chinese League Division-A 2024"]
[Site "Fuling Chongqing"]
[Date "2024.06.29"]
[Round "4.4"]
[White "Lu, Miaoyi"]
[Black "Li, Ruofan"]
[Result "1-0"]
[ECO "A37"]
[WhiteElo "2449"]
[BlackElo "2321"]
[Annotator "TA"]
[PlyCount "83"]
[EventDate "2024.06.28"]
[EventType "team-tourn"]
[EventCountry "CHN"]
[SourceTitle "playchess.com"]
[Source "ChessBase"]
[SourceQuality "1"]
[TimeControl "40/5400+30:1800+30"]

{[%evp 19,83,-6,43,36,33,31,39,27,67,33,79,76,90,91,102,118,117,83,147,136,140,119,161,178,172,155,146,139,183,162,200,166,177,175,162,133,185,185,183,199,211,212,244,208,212,133,120,108,191,210,352,343,380,380,339,292,581,567,1245,1183,1093,943,1786,1770,1718,1681]} 1. c4 {[%emt 0:00:01]} e5 {[%emt 0:03:31]} 2. Nc3 {[%emt 0:00:05]} c5 {[%emt 0:00:05]} 3. g3 {[%emt 0:00:08]} Nc6 {[%emt 0:00:06]} 4. Bg2 {[%emt 0:00:03]} g6 {[%emt 0:01:32]} 5. Nf3 {[%emt 0:00:02]} d6 {[%emt 0:00:53]} 6. O-O {[%emt 0:01:44]} Bg7 {[%emt 0:00:03]} 7. Ne1 {[%emt 0:00:11]} Nge7 {[%emt 0:00:15]} 8. Nc2 {[%emt 0:00:06]} O-O {[%emt 0:08:28]} 9. a3 {[%emt 0:00:25][%cal Ba2a3,Ba3b4,Bb4b5][%mdl 32]} a5 {[%emt 0:01:06]} 10. Rb1 {[%emt 0:00:12]} Rb8 {[%emt 0:01:02]} (10... Be6 $11 {is superior.}) 11. b4 $14 {[%emt 0:03:59]} axb4 {[%emt 0:00:17]} 12. axb4 {[%emt 0:00:02]} b6 {[%emt 0:10:37]} 13. d3 {[%emt 0:06:46] White is slightly better.} Bd7 {[%emt 0:09:08]} 14. e3 {[%emt 0:11:46]} Be6 {[%emt 0:09:41]} (14... f5 $14 {is more appropriate.}) 15. b5 $16 {[%emt 0:04:17]} Na5 {[%emt 0:01:09]} 16. e4 $36 {[%emt 0:06:17][%mdl 2048] Keeping Black busy.} f5 {[%emt 0:12:51]} 17. exf5 {[%emt 0:12:21]} gxf5 {[%emt 0:03:24][%cal Bg6f5,Bf5f4][%mdl 32]} 18. Bg5 {[%emt 0:01:45] White is more active.} h6 {[%emt 0:00:35] [#]} (18... e4 $142) 19. Bxe7 $1 {[%emt 0:01:30]} Qxe7 {[%emt 0:00:04]} 20. Ne3 {[%emt 0:00:11]} f4 {[%emt 0:10:11]} 21. Ned5 {[%emt 0:00:34]} Qf7 {[%emt 0:00:02]} 22. Be4 {[%emt 0:17:36]} Kh8 {[%emt 0:09:22]} 23. f3 {[%emt 0:02:56]} h5 {[%emt 0:03:48]} 24. Rf2 {[%emt 0:08:28]} Bh6 {[%emt 0:00:33]} 25. Kh1 {[%emt 0:04:36]} Rg8 {[%emt 0:00:24]} 26. Ne2 {[%emt 0:00:09] A dynamic duo of knights.} Rg7 {[%emt 0:01:48]} 27. Ra1 {[%emt 0:07:55]} Bxd5 {[%emt 0:05:56]} (27... fxg3 $16 28. hxg3 (28. Nxg3 Rf8 $16) 28... Bf5) 28. Bxd5 $18 {[%emt 0:00:00]} Qd7 {[%emt 0:00:26]} 29. Qc2 {[%emt 0:01:13]} Rf8 {[%emt 0:01:51]} 30. Rg2 {[%emt 0:03:30]} Rf6 {[%emt 0:01:39]} 31. Qb2 {[%emt 0:04:08][%cal Oe2f4] aiming for Nxf4!} fxg3 {[%emt 0:04:09]} 32. hxg3 {[%emt 0:00:01][%cal Of3f4]} Be3 {[%emt 0:00:36]} 33. Rh2 {[%emt 0:01:31]} Rh7 {[%emt 0:00:17]} (33... h4 $16 34. g4 (34. Rxh4+ $2 Rh7 $19) 34... Qe7) 34. Kg2 {[%emt 0:00:06]} Qe8 {[%emt 0:00:48]} (34... h4 {was worth a try.} 35. Rah1 (35. Rxh4 $2 {is the wrong capture.} Rxh4 36. gxh4 Rg6+ 37. Ng3 Qg7 $19) (35. gxh4 Rg6+ 36. Kh1 Rgh6 $11) 35... Rfh6) 35. Be4 {[%emt 0:01:49]} Rhh6 {[%emt 0:00:18]} 36. Rah1 {[%emt 0:00:04]} Kg7 {[%emt 0:00:44]} 37. Qa2 {[%emt 0:01:05]} Bd4 $2 {[%emt 0:00:38] [#]} (37... Rf8 38. Nc3 Bg5) 38. Qd2 {[%emt 0:00:13] White is clearly winning.} Qh8 {[%emt 0:00:40] Black is weak on the light squares} 39. Qg5+ {[%emt 0:00:25]} Kf8 {[%emt 0:00:24]} 40. Rxh5 {[%emt 0:00:00]} Rxh5 {[%emt 0:00:00]} 41. Rxh5 {[%emt 0:00:19]} Qg7 {[%emt 0:01:03]} 42. Qh4 {[%emt 0:00:01] Weighted Error Value: White=0.14 (very precise) /Black=0.46.  Mistake:       	---       	Black=6      Inaccurate:     	White=2     	Black=4      OK:         	White=14    	Black=8      Best:        	White=1     	---} 1-0

[Event "Chinese League Division-A 2024"]
[Site "Fuling Chongqing"]
[Date "2024.06.29"]
[Round "4.5"]
[White "Wang, Yu A."]
[Black "Yan, Tianqi"]
[Result "1/2-1/2"]
[ECO "C01"]
[WhiteElo "2234"]
[BlackElo "2306"]
[Annotator "RC"]
[PlyCount "76"]
[EventDate "2024.06.28"]
[EventType "team-tourn"]
[EventCountry "CHN"]
[SourceTitle "playchess.com"]
[Source "ChessBase"]
[SourceQuality "1"]
[TimeControl "40/5400+30:1800+30"]

1. e4 {[%emt 0:00:01]} e6 {[%emt 0:00:06]} 2. d4 {[%emt 0:00:03]} d5 {[%emt 0:00:06]} 3. exd5 {[%emt 0:00:02]} exd5 {[%emt 0:00:06]} 4. Nf3 {[%emt 0:01:00]} Nf6 {[%emt 0:00:12]} 5. Bd3 {[%emt 0:00:10]} Bd6 {[%emt 0:00:12]} 6. Qe2+ {[%emt 0:00:12]} Be7 {[%emt 0:00:26]} 7. h3 {[%emt 0:04:37]} h6 {[%emt 0:03:58]} 8. Be3 {[%emt 0:06:18]} Nc6 {[%emt 0:04:44]} 9. Ne5 {[%emt 0:02:07]} Nxe5 {[%emt 0:27:05]} 10. dxe5 {[%emt 0:00:02]} Nd7 {[%emt 0:02:25]} 11. e6 {[%emt 0:30:00]} fxe6 {[%emt 0:00:46]} 12. Bd4 {[%emt 0:00:21]} Bf6 {[%emt 0:07:33]} 13. Qxe6+ {[%emt 0:01:21]} Qe7 {[%emt 0:00:32]} 14. Qxe7+ {[%emt 0:00:06]} Kxe7 {[%emt 0:00:06]} 15. Bxf6+ {[%emt 0:00:43]} Kxf6 {[%emt 0:00:52]} 16. Nc3 {[%emt 0:02:02]} c6 {[%emt 0:01:37]} 17. O-O-O {[%emt 0:03:43]} Nc5 {[%emt 0:03:57]} 18. Rhe1 {[%emt 0:06:35]} Be6 {[%emt 0:06:33]} 19. Re3 {[%emt 0:10:56]} Nxd3+ {[%emt 0:03:52]} 20. Rdxd3 {[%emt 0:01:29]} Bf5 {[%emt 0:02:25]} 21. Rf3 {[%emt 0:02:38]} Kg6 {[%emt 0:00:54]} 22. Rg3+ {[%emt 0:00:05]} Kh7 {[%emt 0:01:09]} 23. Rde3 {[%emt 0:03:51]} Rae8 {[%emt 0:02:16]} 24. Ne2 {[%emt 0:02:26]} c5 {[%emt 0:04:40]} 25. c3 {[%emt 0:09:23]} Re4 {[%emt 0:07:31]} 26. Kd2 {[%emt 0:00:00]} g5 {[%emt 0:01:23]} 27. Rgf3 {[%emt 0:01:48]} Bg6 {[%emt 0:02:29]} 28. Ng3 {[%emt 0:00:29]} Rd8 {[%emt 0:03:54]} 29. Ke2 {[%emt 0:05:14]} Rxe3+ {[%emt 0:00:11]} 30. fxe3 {[%emt 0:01:36]} h5 {[%emt 0:05:00]} 31. Rf2 {[%emt 0:02:12]} h4 {[%emt 0:03:45]} 32. Nf5 {[%emt 0:00:29]} Re8 {[%emt 0:01:10]} 33. g4 {[%emt 0:02:40]} hxg3 {[%emt 0:00:14]} 34. Nxg3 {[%emt 0:00:01]} d4 {[%emt 0:01:09]} 35. cxd4 {[%emt 0:00:01]} cxd4 {[%emt 0:00:04]} 36. e4 {[%emt 0:00:09]} Bxe4 {[%emt 0:00:48]} 37. Nxe4 {[%emt 0:00:01]} Rxe4+ {[%emt 0:00:09]} 38. Kd3 {[%emt 0:00:00]} Re7 {[%emt 0:00:56]} 1/2-1/2